bitfinex-derivatives/quotes_ETHF0:USTF0_20241023
["timestamp","ask_amount","ask_price","bid_price","bid_amount"]
[1729716044652,9.3425793,2518.6,2518.3,0.9986]
[1729716044844,7.9125793,2518.6,2518.4,0.39752]
[1729716045047,1.43,2518.5,2518.4,0.39752]
[1729716045555,6.34439908,2518.5,2518.4,0.39752]
[1729716046055,0.39753,2518.4,2518.3,0.4837]
[1729716046353,1.82753,2518.4,2518.3,0.88124]
[1729716046753,1.82752,2518.5,2518.4,0.39752]
[1729716047053,0.39753,2518.4,2518.3,2.31124]
[1729716047951,1.82753,2518.4,2518.3,0.88124]
[1729716048347,1.82753,2518.4,2518.3,2.31124]
[1729716048548,1.82753,2518.4,2518.3,1.9137]
[1729716049175,1.82753,2518.4,2518.3,2.31124]
[1729716050379,1.82753,2518.4,2518.3,1.9137]
[1729716050581,1.82753,2518.4,2518.3,2.31124]
[1729716050978,0.39752,2518.5,2518.3,2.31124]
[1729716051270,5.74375221,2518.5,2518.3,2.31124]
[1729716051476,0.39753,2518.4,2518.3,2.31124]
[1729716051781,0.39753,2518.4,2518.3,2.43556101]
[1729716051977,0.39753,2518.4,2518.3,2.43556103]
[1729716052172,6.14128221,2518.5,2518.3,2.43556103]
[1729716052480,1.82753,2518.4,2518.3,2.31124]
[1729716052677,1.82753,2518.4,2518.3,2.43556211]
[1729716052878,1.82753,2518.4,2518.3,0.60802211]
[1729716053173,1.82753,2518.4,2518.3,1.00556211]
[1729716053771,3.2078,2518.6,2518.5,0.39751]
[1729716053977,3.2078,2518.6,2518.5,1.95182531]
[1729716054169,4.6378,2518.6,2518.5,1.95182531]
[1729716054375,4.6378,2518.6,2518.5,0.12431531]
[1729716054571,4.6378,2518.6,2518.4,1.82752]
[1729716054572,5.0353,2518.6,2518.4,1.82752]
[1729716054884,4.6378,2518.6,2518.5,0.39751]
[1729716055091,4.6378,2518.6,2518.5,1.39581]
[1729716055791,5.0353,2518.6,2518.5,0.5101]
[1729716056084,4.6378,2518.6,2518.5,0.90761]
[1729716057585,5.0353,2518.6,2518.5,0.90761]
[1729716057880,4.6378,2518.6,2518.5,0.90761]
[1729716058082,4.6378,2518.6,2518.5,0.39751]
[1729716058487,6.02,2518.6,2518.5,0.39751]
[1729716059174,5.1171,2518.6,2518.3,2.1502]
[1729716059379,0.39752,2518.5,2518.4,0.39753]
[1729716059794,5.1171,2518.6,2518.4,0.39753]
[1729716059989,5.03531,2518.6,2518.4,0.39753]
[1729716061088,4.6378,2518.6,2518.4,0.39753]
[1729716061286,0.39753,2518.5,2518.3,2.1502]
[1729716061586,1.82753,2518.5,2518.4,0.39753]
[1729716061989,0.39753,2518.5,2518.4,1.82753]
[1729716062481,1.43,2518.5,2518.4,0.39753]
[1729716062986,5.4004,2518.5,2518.4,0.39753]
[1729716063179,9.5738326,2518.5,2518.4,0.39753]
[1729716063382,10.3957626,2518.5,2518.3,1.38373]
[1729716063578,1.43,2518.4,2518.3,1.38374]
[1729716063782,1.43,2518.4,2518.3,1.50806109]
[1729716064083,5.67179356,2518.4,2518.3,1.50806109]
[1729716064291,6.06932356,2518.4,2518.3,1.50806109]
[1729716064684,6.06932356,2518.4,2518.3,1.38374]
[1729716064876,5.67179356,2518.4,2518.3,1.38374]
[1729716065286,6.06932356,2518.4,2518.3,1.38374]
[1729716065683,6.06932356,2518.4,2518.3,2.81374]
[1729716066079,6.06932356,2518.4,2518.3,0.9862]
[1729716066692,0.39754,2518.3,2518.2,1.9285]
[1729716066884,0.39754,2518.3,2518.2,0.4985]
[1729716066885,1.82754,2518.3,2518.2,0.4985]
[1729716067079,6.21981283,2518.3,2518.2,0.4985]
[1729716067284,5.82227283,2518.3,2518.0,3.1157]
[1729716067486,1.82758,2518.1,2518.0,0.5217]
[1729716067784,1.82758,2518.1,2517.9,0.4808]
[1729716067785,0.39759,2518.0,2517.9,0.4808]
[1729716067979,9.00659,2518.0,2517.9,0.4808]
[1729716068185,13.29629561,2518.0,2517.9,0.4808]
[1729716068782,13.29629561,2518.0,2517.7,0.5001]
[1729716068783,0.39762,2517.8,2517.7,0.5001]
[1729716069086,5.82061424,2517.8,2517.7,0.89774]
[1729716070285,6.21823424,2517.8,2517.7,0.89774]
[1729716070484,5.82061424,2517.8,2517.7,0.89774]
[1729716070885,4.39061424,2517.8,2517.7,0.89774]
[1729716071087,5.82061424,2517.8,2517.7,2.32774]
[1729716071288,1.43,2517.8,2517.7,2.32774]
[1729716071482,5.89670047,2517.8,2517.7,2.32774]
[1729716071891,5.89670047,2517.8,2517.7,0.5001]
[1729716072089,6.29432047,2517.8,2517.7,0.5001]
[1729716072392,5.89670047,2517.8,2517.7,0.89774]
[1729716073088,4.46670047,2517.8,2517.7,2.32774]
[1729716073294,3.2078,2518.0,2517.9,0.39761]
[1729716073487,3.2078,2518.0,2517.9,1.82761]
[1729716073687,8.93975536,2518.0,2517.9,1.82761]
[1729716074195,7.50975536,2518.0,2517.9,1.82761]
[1729716075988,4.6378,2518.5,2518.3,0.39754]
[1729716076188,3.60531,2518.5,2518.4,0.988]
[1729716076399,9.00571,2518.5,2518.4,0.988]
[1729716076591,11.82548232,2518.5,2518.4,2.81553]
[1729716076889,11.42797232,2518.5,2518.4,2.81553]
[1729716077097,13.25548232,2518.5,2518.4,2.81553]
[1729716077595,9.28508232,2518.5,2518.4,2.81553]
[1729716077798,13.25548232,2518.5,2518.4,2.81553]
[1729716079294,9.28508232,2518.5,2518.4,2.81553]
[1729716080395,3.2078,2518.9,2518.4,7.8184]
[1729716080700,5.03525,2518.9,2518.8,1.82747]
[1729716081001,9.40467407,2518.9,2518.8,1.82747]
[1729716081197,7.57722407,2518.9,2518.8,1.82747]
[1729716081899,9.00722407,2518.9,2518.8,1.82747]
[1729716082200,7.57722407,2518.9,2518.8,1.82747]
[1729716082396,9.00722407,2518.9,2518.8,1.82747]
[1729716082594,9.40467407,2518.9,2518.8,0.39747]
[1729716083203,9.40467407,2518.9,2518.8,0.89727]
[1729716086301,9.40467407,2518.9,2518.8,1.38477]
[1729716091602,7.57722407,2518.9,2518.8,2.81477]
[1729716094505,9.00722407,2518.9,2518.8,2.81477]
[1729716096005,7.57722407,2518.9,2518.8,2.81477]
[1729716096204,3.2078,2519.2,2519.1,0.39742]
[1729716096404,3.2078,2519.2,2519.1,1.82742]
[1729716096615,7.38141593,2519.2,2519.1,1.82742]
[1729716097302,8.81141593,2519.2,2519.1,0.39742]
[1729716097508,9.20881593,2519.2,2519.1,0.39742]
[1729716098216,12.78101593,2519.2,2518.8,2.1493]
[1729716098509,1.82745,2518.9,2518.8,1.38475]
[1729716098718,1.43,2518.9,2518.8,1.38475]
[1729716098911,5.9922521,2518.9,2518.8,1.38475]
[1729716099415,5.5948021,2518.9,2518.8,1.38475]
[1729716100004,0.3975,2518.6,2518.5,0.39751]
[1729716100207,8.8026021,2518.9,2518.5,2.592]
[1729716100411,8.8026021,2518.9,2518.8,0.39747]
[1729716100604,7.3726021,2518.9,2518.8,0.39747]
[1729716100912,4.1648021,2518.9,2518.8,2.33167]
[1729716101717,5.5948021,2518.9,2518.5,4.3698]
[1729716102013,1.43,2518.7,2518.6,0.90169]
[1729716102206,1.82747,2518.8,2518.7,0.39748]
[1729716102516,4.81155571,2518.8,2518.7,0.39748]
[1729716102811,0.39748,2518.7,2518.6,0.5042]
[1729716103314,4.39249174,2518.7,2518.6,0.9017]
[1729716103515,4.90729174,2518.7,2518.6,0.9017]
[1729716104508,4.39249174,2518.7,2518.6,0.9017]
[1729716105111,4.78997174,2518.7,2518.6,0.3975]
[1729716106308,4.39249174,2518.7,2518.6,0.3975]
[1729716106515,4.78997174,2518.7,2518.6,0.3975]
[1729716107207,4.39249174,2518.7,2518.6,0.3975]
[1729716110616,4.13257717,2518.8,2518.4,3.65782]
[1729716110820,4.13257717,2518.8,2518.7,0.39748]
[1729716111019,4.09126,2518.9,2518.8,0.39747]
[1729716111523,7.47538452,2518.9,2518.8,0.39747]
[1729716115122,11.44578452,2518.9,2518.7,0.39747]
[1729716115318,0.87148,2518.8,2518.7,0.39747]
[1729716115815,5.0131231,2518.8,2518.7,0.39747]
[1729716122221,6.4431231,2518.8,2518.7,0.39747]
[1729716124424,6.4431231,2518.8,2518.7,0.52177719]
[1729716124623,6.4431231,2518.8,2518.7,0.39747]
[1729716125224,6.4431231,2518.8,2518.7,0.52177679]
[1729716126124,6.4431131,2518.8,2518.7,0.52177679]
[1729716126731,4.6156431,2518.8,2518.7,0.52177679]
[1729716127030,4.6156431,2518.8,2518.7,1.95177679]
[1729716127221,5.0131131,2518.8,2518.7,1.95177679]
[1729716127425,4.6156431,2518.8,2518.7,1.95177679]
[1729716127622,6.4431131,2518.8,2518.7,1.95177679]
[1729716128025,6.4431131,2518.8,2518.7,0.52177679]
[1729716129331,6.4431131,2518.8,2518.4,0.39752]
[1729716129332,10.0160431,2518.8,2518.4,0.39752]
[1729716129537,1.82751,2518.5,2518.4,0.39752]
[1729716129939,0.39754,2518.4,2518.3,0.39753]
[1729716130133,2.30404,2518.4,2518.3,0.39753]
[1729716130328,6.89411326,2518.4,2518.3,0.39753]
[1729716135937,6.49657326,2518.4,2518.3,0.39753]
[1729716136133,4.59007326,2518.4,2518.3,1.82753]
[1729716136535,0.39752,2518.5,2518.4,0.39753]
[1729716136733,1.82752,2518.5,2518.4,0.39753]
[1729716136939,6.63076178,2518.5,2518.4,0.39753]
[1729716139040,6.23324178,2518.5,2518.4,0.39753]
[1729716139337,6.14595178,2518.5,2518.4,1.82753]
[1729716139541,5.74844178,2518.5,2518.4,0.39753]
[1729716140630,5.74844178,2518.5,2518.4,1.82753]
[1729716141633,4.31844178,2518.5,2518.4,1.82753]
[1729716141838,4.31844178,2518.5,2518.4,0.39753]
[1729716141839,5.74844178,2518.5,2518.4,0.39753]
[1729716146049,6.14595178,2518.5,2518.4,0.39753]
[1729716147348,5.74844178,2518.5,2518.4,0.39753]
[1729716148842,4.31844178,2518.5,2518.4,1.82753]
[1729716150040,4.71595178,2518.5,2518.4,1.82753]
[1729716150239,6.14595178,2518.5,2518.4,1.82753]
[1729716150457,5.74844178,2518.5,2518.4,1.82753]
[1729716154745,5.74844178,2518.5,2518.4,0.39753]
[1729716154942,5.74844178,2518.5,2518.4,0.52184206]
[1729716155141,6.14595178,2518.5,2518.4,0.39753]
[1729716155856,5.74844178,2518.5,2518.4,0.39753]
[1729716156347,6.14595178,2518.5,2518.4,0.39753]
[1729716156946,5.74844178,2518.5,2518.4,0.39753]
[1729716157355,4.31844178,2518.5,2518.4,1.82753]
[1729716157655,4.31844178,2518.5,2518.4,1.95184191]
[1729716160848,9.71884178,2518.5,2518.4,0.52184191]
[1729716161051,9.71884178,2518.5,2517.9,1.67730554]
[1729716161052,0.3976,2518.0,2517.9,0.3976]
[1729716161256,1.43,2518.0,2517.5,3.9700545]
[1729716161457,1.38591,2517.9,2517.8,0.39762]
[1729716161652,0.9883,2517.9,2517.5,0.506]
[1729716161853,5.57284749,2517.9,2517.7,0.39763]
[1729716162161,5.17522749,2517.9,2517.5,0.6247236]
[1729716162346,0.39763,2517.8,2517.7,0.39764]
[1729716162860,5.9836062,2517.8,2517.7,0.39764]
[1729716170564,4.5536062,2517.8,2517.7,0.39764]
[1729716170761,5.9836062,2517.8,2517.7,0.39764]
[1729716185774,4.5536062,2517.8,2517.7,1.82764]
[1729716185985,5.9836062,2517.8,2517.7,0.39764]
[1729716191390,7.4136062,2517.8,2517.7,0.39764]
[1729716191894,5.9836062,2517.8,2517.7,0.39764]
[1729716192286,4.5536062,2517.8,2517.7,0.39764]
[1729716192485,5.9836062,2517.8,2517.7,0.39764]
[1729716192789,0.39769,2517.4,2517.2,0.39771]
[1729716193084,0.4839,2517.9,2517.3,0.3977]
[1729716193085,3.60548,2517.5,2517.3,0.3977]
[1729716193393,5.96902298,2517.4,2517.3,0.3977]
[1729716197091,6.36671298,2517.4,2517.2,0.39771]
[1729716197286,1.43,2517.3,2517.2,0.39771]
[1729716197695,5.8287211,2517.3,2517.2,0.39771]
[1729716198496,4.3987211,2517.3,2517.2,0.39771]
[1729716198690,5.8287211,2517.3,2517.2,0.39771]
[1729716198883,1.43,2517.3,2517.2,0.39771]
[1729716199185,5.68001361,2517.3,2517.2,0.39771]
[1729716215497,4.25001361,2517.3,2517.2,1.82771]
[1729716215799,5.96644728,2517.4,2517.2,4.76216134]
[1729716216105,1.43,2517.3,2517.2,3.60552]
[1729716216302,1.43,2517.3,2517.2,3.72987779]
[1729716216603,5.79793432,2517.3,2517.2,3.72987779]
[1729716216902,1.43,2517.3,2517.2,3.72987779]
[1729716217103,5.81219186,2517.3,2517.2,3.72987779]
[1729716218204,5.81219186,2517.3,2517.2,3.72987725]
[1729716220905,5.81219186,2517.3,2517.2,7.70267725]
[1729716221112,5.81219186,2517.3,2517.2,7.90164641]
[1729716221411,5.81219186,2517.3,2517.2,3.92884641]
[1729716222404,5.81219186,2517.3,2517.2,3.7298782]
[1729716223907,5.81219186,2517.3,2517.2,7.7026782]
[1729716224110,5.81219186,2517.3,2517.2,3.7298782]
[1729716224507,5.81219186,2517.3,2517.2,3.92885237]
[1729716225707,5.81219186,2517.3,2517.2,4.04618278]
[1729716225909,5.81219186,2517.3,2517.2,0.83838278]
[1729716226109,5.81219186,2517.3,2517.2,4.04618278]
[1729716226416,5.81219186,2517.3,2517.2,3.92885237]
[1729716226619,5.81219186,2517.3,2517.2,4.54592]
[1729716226909,5.81219186,2517.3,2517.2,8.84205172]
[1729716227110,5.81219186,2517.3,2517.2,4.86925172]
[1729716227414,5.81219186,2517.3,2517.2,8.84205172]
[1729716227713,5.81219186,2517.3,2517.2,4.86925172]
[1729716228713,6.20989186,2517.3,2517.2,3.53113172]
[1729716228907,7.24219186,2517.3,2516.8,3.2078]
[1729716229105,1.82776,2517.0,2516.9,0.1243767]
[1729716229514,6.37380401,2517.0,2516.8,3.60558]
[1729716229717,6.37380401,2517.0,2516.8,3.2078]
[1729716229718,0.39777,2516.9,2516.8,3.2078]
[1729716229919,1.82777,2516.9,2516.8,3.33218347]
[1729716230318,6.00287985,2516.9,2516.8,3.33218347]
[1729716230815,6.00287985,2516.9,2516.8,3.33218467]
[1729716231017,6.00287985,2516.9,2516.8,3.33218429]
[1729716231318,6.00287985,2516.9,2516.8,3.33218404]
[1729716231511,6.00287985,2516.9,2516.8,3.2078]
[1729716231713,5.60510985,2516.9,2516.8,3.2078]
[1729716231916,5.60510985,2516.9,2516.8,3.60558]
[1729716232409,5.60510985,2516.9,2516.8,3.72996672]
[1729716232615,5.60510985,2516.9,2516.8,3.60558]
[1729716232812,5.60510985,2516.9,2516.8,3.72996674]
[1729716234419,5.60510985,2516.9,2516.8,0.52216674]
[1729716234914,5.60510985,2516.9,2516.8,0.52216622]
[1729716236814,5.60510985,2516.9,2516.8,1.90766622]
[1729716238718,5.60510985,2516.9,2516.8,1.78328]
[1729716238923,4.17510985,2516.9,2516.8,1.90766649]
[1729716239220,1.43,2516.9,2516.8,1.90766649]
[1729716239520,5.77462869,2516.9,2516.8,1.90766649]
[1729716240119,4.34462869,2516.9,2516.8,1.90766649]
[1729716240422,1.43,2516.9,2516.8,1.90766649]
[1729716240923,5.62622512,2516.9,2516.8,1.90766649]
[1729716241326,5.62622512,2516.9,2516.8,1.78328]
[1729716241524,5.62622512,2516.9,2516.8,3.33766248]
[1729716241827,5.62622512,2516.9,2516.8,2.10667257]
[1729716242421,1.43,2516.9,2516.8,6.08027257]
[1729716242817,1.43,2517.0,2516.8,5.68249257]
[1729716243021,1.43,2517.2,2516.9,5.95559971]
[1729716243321,0.474,2517.5,2517.1,1.43]
[1729716243626,5.40531744,2517.5,2517.4,0.39769]
[1729716244023,5.00764744,2517.5,2517.4,0.39769]
[1729716244321,5.00764744,2517.5,2517.4,1.95204963]
[1729716244322,4.53364744,2517.5,2517.4,1.95204963]
[1729716244727,5.96364744,2517.5,2517.4,1.95204963]
[1729716245230,5.96364744,2517.5,2517.4,1.82769]
[1729716245521,5.96364744,2517.5,2517.4,1.95204411]
[1729716249233,5.96364744,2517.5,2517.4,1.82769]
[1729716249419,5.96364744,2517.5,2517.4,1.95204365]
[1729716249830,4.53364744,2517.5,2517.4,1.95204365]
[1729716250624,5.96364744,2517.5,2517.4,1.95204365]
[1729716251931,5.96364744,2517.5,2517.4,1.82769]
[1729716260033,5.96364744,2517.5,2517.4,1.95204234]
[1729716260739,5.96364744,2517.5,2517.4,1.95204233]
[1729716261436,5.96364744,2517.5,2517.4,1.9520437]
[1729716262541,5.96364744,2517.5,2517.4,1.82769]
[1729716263040,5.96364744,2517.5,2517.4,1.95204278]
[1729716263245,5.96364744,2517.5,2517.4,1.82769]
[1729716263542,5.96364744,2517.5,2517.4,1.95204265]
[1729716263842,5.96364744,2517.5,2517.4,5.03549]
[1729716264239,5.96364744,2517.5,2517.4,5.15984268]
[1729716264432,5.96364744,2517.5,2517.4,5.03549]
[1729716265038,5.96364744,2517.5,2517.4,1.82769]
[1729716265242,5.96364744,2517.5,2517.4,5.03549]
[1729716266540,5.96364744,2517.5,2517.4,1.82769]
[1729716266933,5.96364744,2517.5,2517.4,5.03549]
[1729716268040,5.96364744,2517.5,2517.4,5.15984273]
[1729716268337,5.96364744,2517.5,2517.4,1.95204273]
[1729716268738,5.96364744,2517.5,2517.4,5.15984254]
[1729716268941,5.96364744,2517.5,2517.4,5.03549]
[1729716269136,5.96364744,2517.5,2517.4,5.15984241]
[1729716269344,4.53364744,2517.5,2517.4,5.03549]
[1729716270748,4.53364744,2517.5,2517.4,1.82769]
[1729716271054,4.53364744,2517.5,2517.4,5.03549]
[1729716272839,4.98024744,2517.5,2517.4,5.03549]
[1729716273038,6.41024744,2517.5,2517.4,3.60549]
[1729716273247,4.98024744,2517.5,2517.4,5.03549]
[1729716274944,4.98024744,2517.5,2517.4,5.15984313]
[1729716276253,4.98024744,2517.5,2517.4,5.03549]
[1729716276445,4.98024744,2517.5,2517.4,5.15984262]
[1729716280248,4.98024744,2517.5,2517.4,6.30084262]
[1729716284349,4.98024744,2517.5,2517.4,6.49980615]
[1729716286153,4.98024744,2517.5,2517.4,3.29200615]
[1729716286353,4.98024744,2517.5,2517.4,6.49980615]
[1729716286554,4.53364744,2517.5,2517.4,6.49980615]
[1729716287553,19.65807062,2526.2,2517.8,0.99404]
[1729716287554,3.2078,2518.3,2517.8,0.99404]
[1729716287756,4.6378,2518.3,2518.2,1.82756]
[1729716287948,3.2078,2518.3,2518.2,1.95191262]
[1729716288144,3.2078,2518.3,2518.2,2.15083339]
[1729716288353,1.43,2518.6,2518.2,4.96107339]
[1729716288545,1.43,2518.6,2518.5,1.82751]
[1729716290158,9.2353715,2518.9,2518.8,1.82747]
[1729716290960,8.7902715,2518.9,2518.8,1.82747]
[1729716291255,7.3602715,2518.9,2518.8,1.82747]
[1729716291859,8.7902715,2518.9,2518.8,1.82747]
[1729716292359,1.43,2519.3,2519.2,0.3974]
[1729716292559,1.8882,2519.3,2519.2,0.3974]
[1729716292756,6.32261816,2519.3,2519.2,0.3974]
[1729716293664,3.2078,2519.5,2519.4,0.39737]
[1729716293954,3.2078,2519.5,2519.4,1.82737]
[1729716294458,0.4,2519.6,2519.4,1.43]
[1729716294658,0.4,2519.6,2519.5,1.82736]
[1729716295752,0.4,2519.6,2519.5,3.16526]
[1729716296254,1.83,2519.6,2519.5,1.53736]
[1729716296456,1.83,2519.6,2519.5,2.96736]
[1729716297163,0.4,2519.6,2519.5,2.96736]
[1729716300352,0.2,2520.0,2519.5,6.5388]
[1729716300561,0.2,2520.0,2519.9,1.82729]
[1729716300906,1.63,2520.0,2519.9,1.82729]
[1729716302560,1.63,2520.0,2519.9,1.136]
[1729716302561,2.02728,2520.0,2519.9,1.136]
[1729716303264,2.02728,2520.0,2519.8,1.43]
[1729716303265,1.63,2520.0,2519.8,1.43]
[1729716303467,1.63,2520.0,2519.5,1.136]
[1729716303468,5.3988,2519.9,2519.5,1.136]
[1729716303669,0.3974,2519.2,2519.1,3.2078]
[1729716303971,0.39743,2519.1,2519.0,1.43]
[1729716304157,2.28743,2519.1,2519.0,1.43]
[1729716304358,4.81132955,2519.1,2519.0,1.43]
[1729716304557,4.81132955,2519.1,2519.0,1.82743]
[1729716304766,4.35132955,2519.1,2519.0,1.82743]
[1729716304967,0.46,2519.4,2519.0,1.43]
[1729716305169,1.89,2519.4,2519.3,1.43]
[1729716305565,1.89,2519.4,2519.3,1.82739]
[1729716305566,6.37938265,2519.4,2519.3,1.82739]
[1729716306471,5.34676265,2519.4,2519.2,0.3974]
[1729716306867,5.34676265,2519.4,2519.3,0.39739]
[1729716307368,4.94938265,2519.4,2519.3,0.39739]
[1729716307670,5.34675265,2519.4,2519.3,0.39739]
[1729716308377,4.94938265,2519.4,2519.3,0.39739]
[1729716309771,5.34676265,2519.4,2519.3,0.39739]
[1729716310174,0.3974,2519.3,2519.2,0.3974]
[1729716310375,0.39742,2519.1,2519.0,0.39743]
[1729716310565,6.7678,2519.5,2519.2,0.3974]
[1729716310566,4.37531687,2519.3,2519.2,0.3974]
[1729716310762,3.2078,2519.5,2519.0,3.1]
[1729716310965,3.2078,2519.5,2519.4,0.39737]
[1729716311470,0.39745,2518.9,2518.8,3.2078]
[1729716311784,0.3975,2518.6,2518.5,3.2078]
[1729716311972,10.2782,2518.6,2518.0,0.4549]
[1729716312169,11.54210008,2518.6,2518.0,0.4549]
[1729716312471,0.39754,2518.4,2518.2,0.39755]
[1729716312772,4.97926272,2518.3,2518.2,0.39756]
[1729716312974,4.97926272,2518.3,2518.1,0.39757]
[1729716313278,0.39755,2518.3,2518.1,0.39757]
[1729716313476,4.1609832,2518.2,2518.1,0.39757]
[1729716313672,4.1609832,2518.2,2517.9,1.136]
[1729716313867,4.1609832,2518.2,2518.0,0.39759]
[1729716313868,4.5585532,2518.2,2518.0,0.39759]
[1729716314074,4.1609832,2518.5,2517.8,3.2078]
[1729716314272,0.39756,2518.3,2518.1,0.39758]
[1729716314466,0.4373,2518.2,2518.1,0.39758]
[1729716314675,5.2843359,2518.2,2518.0,0.39759]
[1729716314864,4.8867659,2518.2,2518.0,0.39758]
[1729716315069,5.2843359,2518.2,2518.0,0.39758]
[1729716315666,5.2843359,2518.2,2517.9,0.3976]
[1729716316065,4.8867659,2518.2,2518.0,0.39759]
[1729716316510,4.8867659,2518.2,2517.8,3.2078]
[1729716316778,4.8867659,2518.2,2518.1,0.39758]
[1729716318280,4.8867659,2518.2,2517.8,3.2078]
[1729716318474,5.2843359,2518.2,2517.9,0.3976]
[1729716318677,5.2843359,2518.2,2517.9,0.39759]
[1729716318978,5.2843359,2518.2,2518.0,0.39759]
[1729716319779,4.8867659,2518.2,2518.0,0.39759]
[1729716320073,5.2843359,2518.2,2517.9,0.3976]
[1729716320272,5.2843359,2518.2,2517.8,3.2078]
[1729716320470,4.8867659,2518.2,2518.0,0.39759]
[1729716320775,4.8867659,2518.2,2517.8,3.2078]
[1729716320985,0.39759,2518.0,2517.8,3.2078]
[1729716321277,4.46196519,2517.9,2517.8,3.60542]
[1729716321871,4.9522699,2518.1,2517.9,0.3976]
[1729716322081,0.39761,2517.9,2517.8,3.60542]
[1729716322281,0.3976,2518.0,2517.8,3.60542]
[1729716322476,4.80060696,2517.9,2517.8,3.60542]
[1729716322877,4.36961,2517.9,2517.8,3.2078]
[1729716323182,4.36961,2517.9,2517.8,3.60542]
[1729716323183,8.77260696,2517.9,2517.8,3.60542]
[1729716323974,8.77260696,2517.9,2517.8,3.2078]
[1729716325374,0.39766,2517.6,2517.5,0.82696]
[1729716325779,4.76859027,2517.6,2517.5,0.82696]
[1729716325980,4.37093027,2517.6,2517.5,0.82696]
[1729716326484,0.39765,2517.7,2517.6,0.39765]
[1729716326677,0.39766,2517.6,2517.5,0.82696]
[1729716326919,0.39766,2517.6,2517.5,0.4293]
[1729716327078,4.33511065,2517.6,2517.5,0.39767]
[1729716327877,0.39768,2517.5,2517.4,0.39768]
[1729716328075,0.39769,2517.4,2517.3,0.4431]
[1729716328275,0.39771,2517.3,2517.1,0.4231]
[1729716328474,4.55923398,2517.4,2517.3,0.39769]
[1729716328680,0.39773,2517.1,2517.0,3.2078]
[1729716329009,0.39773,2517.1,2517.0,3.60555]
[1729716329010,4.55927398,2517.1,2517.0,3.60555]
[1729716329175,4.55927398,2517.1,2517.0,3.2078]
[1729716329486,7.65928398,2517.1,2516.9,0.39775]
[1729716329783,0.39775,2517.0,2516.9,0.39775]
[1729716330176,4.9306185,2517.0,2516.9,0.39775]
[1729716330879,4.5328685,2517.0,2516.9,0.39775]
[1729716331475,4.5328685,2517.0,2516.8,0.4384]
[1729716331800,4.5328685,2517.0,2516.9,0.39777]
[1729716332976,4.9306185,2517.0,2516.9,0.39777]
[1729716334974,8.9034185,2517.0,2516.9,0.39777]
[1729716335686,0.99443,2516.9,2516.3,3.2078]
[1729716335981,0.39784,2516.5,2516.4,0.39783]
[1729716336293,0.39782,2516.6,2516.5,0.39782]
[1729716336686,8.93102057,2516.6,2516.5,0.39782]
[1729716338289,8.93101057,2516.6,2516.5,0.39782]
[1729716339185,8.53320057,2516.6,2516.2,0.8543]
[1729716339422,3.1,2516.5,2516.2,0.8543]
[1729716339689,3.49784,2516.5,2516.4,0.39785]
[1729716339986,7.67707083,2516.5,2516.4,0.39785]
[1729716340380,7.27923083,2516.5,2516.4,0.39785]
[1729716340584,4.17923083,2516.5,2516.4,0.39785]
[1729716340985,4.88823081,2516.6,2516.5,0.39783]
[1729716341186,0.39781,2516.6,2516.5,0.39783]
[1729716341390,3.49782,2516.7,2516.6,0.39781]
[1729716341594,0.39782,2516.6,2516.5,0.39782]
[1729716341988,8.93351915,2516.6,2516.5,0.39782]
[1729716342290,4.95991915,2516.6,2516.5,0.39782]
[1729716345694,8.05991915,2516.6,2516.5,0.39782]
[1729716348892,7.66209915,2516.6,2516.5,0.39782]
[1729716352801,4.56209915,2516.6,2516.5,0.39782]
[1729716353296,4.61155957,2516.7,2516.6,0.3978]
[1729716353498,6.70559,2516.8,2516.7,0.3978]
[1729716353892,14.91816565,2516.8,2516.7,0.3978]
[1729716356197,11.71036565,2516.8,2516.7,0.3978]
[1729716360309,10.04036565,2516.8,2516.7,0.3978]
[1729716361002,10.04036565,2516.8,2516.7,0.8412]
[1729716364324,8.61036565,2516.8,2516.7,0.8412]
[1729716364606,10.04036565,2516.8,2516.7,0.8412]
[1729716366500,0.39785,2516.5,2516.4,0.39783]
[1729716366706,1.82785,2516.5,2516.4,0.83583]
[1729716366906,1.82785,2516.5,2516.4,0.96024341]
[1729716366907,6.19226875,2516.5,2516.4,0.96024341]
[1729716367202,5.79441875,2516.5,2516.4,0.96024341]
[1729716368106,6.19224875,2516.5,2516.4,0.96024341]
[1729716368305,6.19224875,2516.5,2516.4,1.39854341]
[1729716371705,4.36441875,2516.5,2516.4,2.82854341]
[1729716372110,1.43,2516.6,2516.5,0.39783]
[1729716372413,5.63684374,2516.6,2516.5,0.52224341]
[1729716373307,6.03465374,2516.6,2516.5,0.52224341]
[1729716373706,6.03465374,2516.6,2516.5,0.12441341]
[1729716374008,0.39792,2516.0,2515.9,0.39792]
[1729716374211,1.82792,2516.0,2515.9,0.39792]
[1729716374405,6.15657528,2516.0,2515.9,0.39792]
[1729716374612,0.39792,2515.9,2515.8,0.83752]
[1729716374913,1.43,2515.9,2515.8,1.03662126]
[1729716375116,1.82792,2515.9,2515.8,1.03662126]
[1729716375317,1.43631,2516.2,2515.8,0.63870683]
[1729716375516,0.39792,2516.0,2515.9,0.39791]
[1729716375709,4.56388419,2516.0,2515.9,0.39791]
[1729716375907,0.39792,2516.0,2515.9,0.39791]
[1729716376109,0.39792,2515.9,2515.8,0.83753]
[1729716376412,0.39794,2515.8,2515.7,0.4497]
[1729716376615,1.82794,2515.8,2515.7,0.4497]
[1729716376812,6.22541705,2515.8,2515.7,0.4497]
[1729716377508,6.22541705,2515.8,2515.7,0.84766]
[1729716379711,6.22541705,2515.8,2515.7,0.4497]
[1729716380220,6.22541705,2515.8,2515.7,0.84766]
[1729716380919,5.82747705,2515.8,2515.7,0.84766]
[1729716385115,4.39747705,2515.8,2515.7,0.84766]
[1729716385319,4.39747705,2515.8,2515.7,2.27766]
[1729716385524,1.43,2515.9,2515.8,0.39794]
[1729716385813,5.95965202,2515.9,2515.8,0.39794]
[1729716386022,5.95965202,2515.9,2515.8,2.39318453]
[1729716386710,3.2078,2516.1,2515.8,6.36758453]
[1729716386916,1.43,2516.3,2516.2,0.39788]
[1729716387213,1.43,2516.3,2516.2,0.52232453]